bitfinex-derivatives/quotes_SOLF0:USTF0_20250310
["timestamp","ask_amount","ask_price","bid_price","bid_amount"]
[1741616809503,45.05454614,122.41,122.34,8.3779]
[1741616810501,45.11651346,122.39,122.36,6.158e-05]
[1741616810800,8.1725,122.37,122.36,6.158e-05]
[1741616811801,8.23386732,122.39,122.36,6.158e-05]
[1741616812009,0.06196732,122.39,122.36,6.158e-05]
[1741616812505,1.42241115,122.45,122.37,62.0]
[1741616812711,269.78,122.47,122.38,45.05454614]
[1741616812902,1.4217719,122.51,122.41,45.05454614]
[1741616813207,157.38450576,122.52,122.41,45.05454614]
[1741616813409,52.44607968,122.49,122.43,45.05454614]
[1741616813605,52.44607968,122.49,122.44,4.2336]
[1741616813606,0.05416,122.46,122.44,4.2336]
[1741616813907,0.05416,122.46,122.39,3.9615]
[1741616814107,45.10870614,122.46,122.41,0.05772185]
[1741616814413,84.96550298,122.42,122.35,4.2336]
[1741616814608,84.96550298,122.42,122.35,8.1951]
[1741616814999,84.96550298,122.42,122.36,45.05454614]
[1741616815404,71.83870298,122.42,122.38,45.05454614]
[1741616815599,64.74690001,122.43,122.4,90.10909228]
[1741616815909,323.83726879,122.44,122.42,45.05454614]
[1741616816109,30.55713989,122.44,122.42,45.05454614]
[1741616816403,266.49857827,122.46,122.43,8.1685]
[1741616816595,145.80251986,122.46,122.45,45.05454614]
[1741616816794,134.03587354,122.54,122.48,8.1652]
[1741616817004,134.03587354,122.54,122.48,53.21974614]
[1741616817005,319.84916999,122.49,122.48,53.21974614]
[1741616817211,45.05670878,122.57,122.48,49.13454614]
[1741616817407,45.05670878,122.57,122.56,45.05454614]
[1741616817703,0.0514246,122.54,122.5,45.05454614]
[1741616817904,53.21650878,122.57,122.55,0.05842855]
[1741616818206,0.05724375,122.53,122.45,273.99720742]
[1741616818413,8.1567,122.61,122.56,186.81565]
[1741616818605,8.16994504,122.62,122.56,178.65575]
[1741616818808,40.83,122.58,122.56,178.65575]
[1741616819107,48.99994504,122.57,122.56,178.65575]
[1741616819307,48.99994504,122.59,122.56,178.65575]
[1741616819509,16.32914504,122.57,122.56,178.65575]
[1741616819708,73.47914504,122.57,122.56,178.65575]
[1741616819913,0.0602313,122.58,122.56,178.65575]
[1741616820216,46.79864614,122.69,122.56,227.79029614]
[1741616820511,45.05454614,122.77,122.66,45.05454614]
[1741616820713,8.16994504,122.72,122.66,45.05454614]
[1741616820902,45.05454614,122.75,122.62,45.05454614]
[1741616821102,45.05454614,122.75,122.58,45.05454614]
[1741616821103,8.16994504,122.66,122.58,45.05454614]
[1741616821310,40.83,122.69,122.61,45.05454614]
[1741616821507,4.2808,122.81,122.66,45.05454614]
[1741616821724,8.16994504,122.73,122.66,45.05454614]
[1741616821905,8.16994504,122.72,122.66,45.05454614]
[1741616822101,8.16994504,122.7,122.62,45.05454614]
[1741616822410,48.99994504,122.69,122.6,45.05454614]
[1741616822609,0.05362719,122.7,122.56,115.0]
[1741616822610,8.1549,122.64,122.57,8.1587]
[1741616822799,16.32,122.7,122.57,8.1587]
[1741616822800,8.16994504,122.63,122.57,8.1587]
[1741616823003,8.16994504,122.64,122.56,45.05454614]
[1741616823207,8.16994504,122.59,122.52,45.05454614]
[1741616823409,8.16994504,122.57,122.56,133.90538995]
[1741616823613,40.83,122.57,122.56,133.90538995]
[1741616823811,118.07454614,122.61,122.56,133.90538995]
[1741616824008,8.16994504,122.57,122.56,133.90538995]
[1741616824214,16.32914504,122.57,122.56,133.90538995]
[1741616824406,24.4792,122.57,122.56,133.90538995]
[1741616824616,24.4792,122.57,122.56,45.47013437]
[1741616825015,53.27425017,122.58,122.56,45.47013437]
[1741616825219,8.16994504,122.57,122.56,45.47013437]
[1741616825418,48.99994504,122.57,122.56,45.47013437]
[1741616825624,0.06060403,122.58,122.56,45.47013437]
[1741616825820,4.1644,122.69,122.56,94.60468051]
[1741616826021,45.05454614,122.73,122.62,45.05454614]
[1741616826322,8.16994504,122.69,122.63,62.0]
[1741616826524,8.16994504,122.67,122.63,62.0]
[1741616826719,8.16994504,122.65,122.63,62.0]
[1741616826926,8.16994504,122.66,122.63,70.1548]
[1741616827223,61.43719172,122.66,122.64,0.05563515]
[1741616827422,94.05449118,122.65,122.64,3.515e-05]
[1741616827622,85.88454614,122.65,122.54,3.9379]
[1741616827818,8.16994504,122.61,122.54,3.9379]
[1741616828017,8.16994504,122.56,122.46,237.05454614]
[1741616828221,8.16994504,122.57,122.47,3.9379]
[1741616828428,45.05454614,122.62,122.51,45.05454614]
[1741616828722,45.05454614,122.62,122.51,45.11200576]
[1741616828925,8.16994504,122.58,122.51,45.05454614]
[1741616829122,40.83,122.6,122.51,45.05454614]
[1741616829319,8.16994504,122.57,122.51,45.05454614]
[1741616829520,8.16994504,122.58,122.51,45.05454614]
[1741616829724,8.16994504,122.59,122.51,45.05454614]
[1741616830033,4.704e-05,122.56,122.55,8.1605]
[1741616830231,4.704e-05,122.56,122.55,115.21504614]
[1741616830436,121.85744614,122.69,122.55,303.13454614]
[1741616830637,8.16994504,122.61,122.59,8.1577]
[1741616830934,8.16994504,122.59,122.55,254.0]
[1741616831235,0.05871863,122.61,122.55,107.05454614]
[1741616831532,0.06211891,122.59,122.56,0.06000426]
[1741616831729,76.8029,122.69,122.55,111.13454614]
[1741616832036,8.16994504,122.62,122.55,299.05454614]
[1741616832534,8.16994504,122.59,122.55,254.0]
[1741616832927,1.94e-06,122.58,122.56,0.05810406]
[1741616833131,8.16994504,122.61,122.55,299.05454614]
[1741616833530,8.16994504,122.58,122.55,254.0]
[1741616833831,8.16994504,122.58,122.54,3.9379]
[1741616834031,0.05889463,122.58,122.55,0.05525197]
[1741616834230,8.16994504,122.57,122.55,0.05525197]
[1741616834423,8.16994504,122.56,122.55,0.05525197]
[1741616834625,8.16994504,122.56,122.48,45.05454614]
[1741616834626,48.99994504,122.56,122.48,45.05454614]
[1741616834826,8.16994504,122.52,122.47,195.9392]
[1741616835227,45.05454614,122.59,122.47,195.9392]
[1741616835427,8.16994504,122.49,122.47,192.0]
[1741616835632,8.16994504,122.49,122.42,45.05454614]
[1741616835932,0.05472916,122.49,122.47,0.05317328]
[1741616836134,0.05472916,122.49,122.42,45.05454614]
[1741616836338,0.05472916,122.49,122.47,0.06082137]
[1741616836528,76.2651,122.55,122.45,45.05454614]
[1741616836729,8.16994504,122.5,122.47,0.05597956]
[1741616836926,92.5851,122.55,122.47,0.05597956]
[1741616836927,4.241e-05,122.48,122.47,0.05597956]
[1741616837132,4.241e-05,122.48,122.47,8.1659]
[1741616837334,76.2651,122.55,122.46,62.0]
[1741616837523,8.16994504,122.49,122.46,62.0]
[1741616837928,8.16994504,122.48,122.46,62.0]
[1741616838134,8.16994504,122.48,122.47,8.1655]
[1741616838436,0.05335389,122.49,122.46,62.0586445]
[1741616838635,48.99994504,122.47,122.46,0.0586445]
[1741616838928,48.99994504,122.47,122.35,45.05454614]
[1741616839138,8.16994504,122.43,122.37,45.05454614]
[1741616839338,8.16994504,122.45,122.39,45.05454614]
[1741616839733,8.16994504,122.44,122.39,45.05454614]
[1741616839935,40.83,122.46,122.39,45.05454614]
[1741616840130,0.05475894,122.43,122.4,0.05504213]
[1741616840737,71.32,122.48,122.41,45.05454614]
[1741616841035,8.16994504,122.45,122.41,45.05454614]
[1741616841237,8.16994504,122.46,122.41,45.05454614]
[1741616841541,8.16994504,122.46,122.42,62.0]
[1741616841739,8.4015,122.53,122.43,45.05454614]
[1741616841938,8.16994504,122.49,122.45,45.05454614]
[1741616842237,8.22440239,122.49,122.43,45.05454614]
[1741616842443,8.22440239,122.49,122.46,0.05514485]
[1741616842631,5.735e-05,122.49,122.47,45.05454614]
[1741616842831,5.735e-05,122.49,122.46,0.05514485]
[1741616843030,5.735e-05,122.49,122.46,45.10969099]
[1741616843431,551.80759673,124.02,122.48,45.05454614]
[1741616843432,1.42052412,122.63,122.48,45.05454614]
[1741616843635,1.42052412,122.63,122.55,45.05454614]
[1741616843942,1.42052412,122.63,122.53,45.05454614]
[1741616843943,4.3135,122.66,122.57,45.05454614]
[1741616844142,40.83,122.64,122.57,45.05454614]
[1741616844341,20.6335,122.66,122.55,45.05454614]
[1741616844342,40.83,122.62,122.55,45.05454614]
[1741616844645,0.05953191,122.62,122.59,0.05317707]
[1741616845142,8.1533,122.66,122.61,8.1563]
[1741616845338,0.05192831,122.62,122.6,62.0]
[1741616845840,40.83,122.61,122.6,0.05260388]
[1741616846245,57.15,122.61,122.52,45.05454614]
[1741616846441,40.83,122.6,122.54,45.05454614]
[1741616846641,1.41988657,122.67,122.58,45.05454614]
[1741616846947,40.83,122.66,122.6,45.05454614]
[1741616847144,57.15,122.66,122.6,45.05454614]
[1741616847546,8.933e-05,122.64,122.62,0.05588213]
[1741616848046,3.9919,122.7,122.63,45.05454614]
[1741616848250,40.83,122.69,122.63,45.05454614]
[1741616848451,4.1685,122.74,122.66,45.05454614]
[1741616848651,40.83,122.72,122.66,45.05454614]
[1741616848854,0.05358559,122.67,122.65,0.05822858]
[1741616849148,40.83,122.7,122.67,8.1524]
[1741616849354,45.05454614,122.75,122.63,45.05454614]
[1741616849655,8.1481,122.74,122.68,8.1517]
[1741616849949,45.05454614,122.75,122.64,45.05454614]
[1741616850158,28.4594,122.72,122.67,45.05454614]
[1741616850449,114.57454614,122.75,122.64,45.05454614]
[1741616850657,28.4594,122.69,122.64,45.05454614]
[1741616850858,28.4594,122.69,122.68,0.0578861]
[1741616851157,28.4594,122.66,122.59,200.2914]
[1741616851457,28.4594,122.64,122.58,45.05454614]
[1741616851654,45.05454614,122.67,122.61,0.05599858]
[1741616851850,28.4594,122.63,122.61,0.05599858]
[1741616852056,0.05920888,122.62,122.58,107.05454614]
[1741616852554,0.05920888,122.62,122.61,0.05793801]
[1741616852754,44.83860888,122.62,122.61,0.05793801]
[1741616852957,44.83860888,122.62,122.54,45.05454614]
[1741616853160,28.4594,122.61,122.54,45.05454614]
[1741616853363,36.6171,122.6,122.55,8.1603]
[1741616853657,28.4594,122.56,122.51,162.78726497]
[1741616853863,28.4594,122.56,122.53,8.1619]
[1741616854154,0.05273709,122.55,122.52,0.05487539]
[1741616854453,0.05273709,122.55,122.53,45.05454614]
[1741616854454,3.709e-05,122.55,122.53,45.05454614]
[1741616854651,49.32964614,122.69,122.53,45.05454614]
[1741616854848,28.4594,122.63,122.58,45.05454614]
[1741616855052,53.59764614,122.69,122.58,45.05454614]
[1741616855053,28.4594,122.64,122.58,45.05454614]
[1741616855251,24.8631,122.69,122.58,45.05454614]
[1741616855448,28.4594,122.67,122.61,45.05454614]
[1741616855653,44.7794,122.69,122.64,45.05454614]
[1741616855957,0.06138492,122.65,122.63,0.05644358]
[1741616856271,28.4594,122.66,122.63,0.05644358]
[1741616856561,8.825e-05,122.66,122.63,0.05644358]
[1741616857062,8.825e-05,122.66,122.65,8.1539]
[1741616857464,8.825e-05,122.66,122.63,0.05644358]
[1741616858171,8.825e-05,122.66,122.65,8.1539]
[1741616858360,8.825e-05,122.66,122.63,0.05644358]
[1741616858554,28.4594,122.64,122.63,0.05644358]
[1741616858750,8.825e-05,122.66,122.63,0.05644358]
[1741616859052,44.77948825,122.66,122.63,0.05644358]
[1741616859260,44.77948825,122.66,122.63,8.21154358]
[1741616859451,28.4594,122.64,122.63,0.05644358]
[1741616859864,44.7794,122.64,122.63,0.05644358]
[1741616860255,44.7794,122.64,122.58,237.05454614]
[1741616860565,28.4594,122.62,122.58,45.05454614]
[1741616860761,28.4594,122.61,122.59,8.1579]
[1741616861062,28.4594,122.61,122.55,45.05454614]
[1741616861260,28.4594,122.6,122.55,45.05454614]
[1741616861459,28.4594,122.57,122.54,131.73712094]
[1741616861764,28.4594,122.55,122.54,131.79317844]
[1741616861962,28.4594,122.55,122.54,0.0560575]
[1741616862267,16.32,122.55,122.49,131.73712094]
[1741616862457,28.4594,122.53,122.5,8.1638]
[1741616862656,28.4594,122.51,122.49,131.73712094]
[1741616862863,28.4594,122.52,122.49,131.73712094]
[1741616863163,28.4594,122.5,122.49,131.73712094]
[1741616863359,28.4594,122.5,122.49,131.79854167]
[1741616863559,0.05985546,122.52,122.49,131.79854167]
[1741616864267,28.4594,122.5,122.49,131.79854167]
[1741616864664,0.05985546,122.52,122.49,131.79854167]
[1741616864959,0.05985546,122.52,122.49,0.06142073]
[1741616865165,28.4594,122.5,122.49,0.06142073]
[1741616865557,44.7794,122.5,122.49,0.06142073]
[1741616865963,44.7794,122.5,122.47,62.0]
[1741616866267,44.7794,122.5,122.41,48.99814614]
[1741616866268,28.4594,122.48,122.41,48.99814614]
[1741616866458,28.4594,122.46,122.41,45.05454614]
[1741616866859,66.8,122.51,122.41,45.05454614]
[1741616867061,28.4594,122.49,122.4,45.05454614]
[1741616867262,16.32,122.51,122.42,45.10737166]
[1741616867263,0.05482488,122.45,122.42,45.10737166]
[1741616867452,0.05482488,122.45,122.41,45.05454614]
[1741616867654,28.4594,122.42,122.37,131.73712094]
[1741616867966,28.4594,122.43,122.37,131.73712094]
[1741616868168,28.4594,122.42,122.39,45.05454614]
[1741616868368,0.06161785,122.41,122.39,45.05454614]
[1741616868556,0.06161785,122.41,122.4,8.1701]
[1741616869361,8.5675,122.47,122.4,62.0]
[1741616869562,28.4594,122.43,122.4,62.0]
[1741616869869,28.4594,122.41,122.4,62.0]
[1741616870055,69.94204614,122.47,122.4,62.0]
[1741616870261,28.4594,122.42,122.4,62.0]
[1741616870570,28.4594,122.41,122.4,62.0]
[1741616870758,28.4594,122.41,122.4,0.05968239]
[1741616871063,66.22,122.46,122.42,8.1692]
[1741616871273,0.06017441,122.42,122.4,0.05968239]
[1741616871569,86.6901,122.46,122.4,0.05737059]
[1741616871767,28.4594,122.41,122.4,0.05737059]
[1741616872170,0.05396155,122.42,122.4,0.05737059]
[1741616872767,0.05396155,122.42,122.41,8.1699]
[1741616873169,16.37396155,122.42,122.41,8.1699]
[1741616873470,314.31454614,122.49,122.4,0.05737059]
[1741616873471,45.05454614,122.53,122.4,0.05737059]
[1741616873667,4.0572,122.48,122.41,62.0]
[1741616873868,28.4594,122.45,122.41,62.0]
[1741616874271,16.32,122.45,122.41,62.0]
[1741616874474,28.4594,122.43,122.41,62.0]
[1741616874671,0.05987841,122.44,122.34,61.40294614]
[1741616874975,28.4594,122.41,122.34,61.40294614]
[1741616875179,28.4594,122.42,122.37,45.05454614]
[1741616875473,28.4594,122.38,122.33,4.133]
[1741616875779,61.37454614,122.47,122.36,45.05454614]
[1741616875973,6.85e-06,122.37,122.36,45.05454614]
[1741616876178,28.4594,122.41,122.36,45.05454614]
[1741616876470,28.4594,122.38,122.31,45.05454614]
[1741616876673,28.4594,122.37,122.36,8.1729]
[1741616877071,44.7794,122.37,122.35,0.05495268]
[1741616877271,44.7794,122.37,122.36,8.1732]
[1741616877670,44.84188297,122.37,122.35,0.05495268]
[1741616877867,28.4594,122.36,122.35,0.05495268]
[1741616878373,44.7794,122.36,122.35,0.05495268]
[1741616878782,44.7794,122.36,122.27,45.05454614]
[1741616878982,28.4594,122.34,122.27,45.05454614]
[1741616879172,28.4594,122.34,122.33,8.1752]
[1741616879368,8.1714,122.39,122.29,45.05454614]
[1741616879573,28.4594,122.35,122.29,45.05454614]
[1741616879873,0.05812271,122.33,122.31,0.05593969]
[1741616880772,16.37812271,122.33,122.31,0.05593969]
[1741616880973,28.4594,122.32,122.31,0.05593969]
[1741616881288,28.4594,122.32,122.22,109.61454614]
[1741616881472,28.4594,122.27,122.22,45.05454614]
[1741616881671,28.4594,122.28,122.26,8.1795]
[1741616881875,28.4594,122.28,122.22,45.05454614]
[1741616882080,44.7794,122.28,122.21,45.05454614]
[1741616882272,28.4594,122.24,122.17,45.05454614]
[1741616882476,28.4594,122.22,122.15,184.53986878]
[1741616882677,45.05454614,122.24,122.12,4.025]
[1741616882879,4.0518,122.23,122.19,0.05511481]
[1741616883080,45.05454614,122.24,122.16,45.05454614]
[1741616883081,0.06154375,122.2,122.16,45.05454614]
[1741616883274,0.06154375,122.2,122.12,4.025]
[1741616883275,28.4594,122.18,122.12,4.025]
[1741616883484,28.4594,122.16,122.11,131.73712094]
[1741616883785,28.51913418,122.15,122.14,0.05984854]
[1741616883984,0.05973418,122.15,122.14,0.05984854]
[1741616884175,269.66,122.22,122.14,0.05984854]
[1741616884375,28.4594,122.21,122.14,0.05984854]
[1741616884581,68.3518,122.27,122.15,45.05454614]
[1741616884779,6.875e-05,122.19,122.18,45.05454614]
[1741616885186,4.0518,122.27,122.18,45.05454614]
[1741616885485,109.17454614,122.31,122.2,45.05454614]
[1741616885691,28.4594,122.28,122.22,45.05454614]
[1741616885989,28.4594,122.23,122.18,192.0]
[1741616886180,28.4594,122.23,122.17,45.05454614]
[1741616886381,0.05220447,122.22,122.2,8.1839]
[1741616886586,28.4594,122.2,122.19,0.05766327]
[1741616887084,0.05220447,122.22,122.19,0.05766327]
[1741616887284,28.4594,122.2,122.19,0.05766327]
[1741616887486,28.4594,122.21,122.19,8.24166327]
[1741616887684,28.4594,122.21,122.19,0.05766327]
[1741616887883,28.4594,122.2,122.19,0.05766327]
[1741616888185,28.4594,122.2,122.12,45.05454614]
[1741616888498,28.4594,122.19,122.13,62.0]
[1741616888979,28.4594,122.19,122.16,8.1864]
[1741616888980,44.7794,122.19,122.16,8.1864]
[1741616889186,28.4594,122.18,122.12,45.05454614]
[1741616889388,28.4594,122.18,122.16,0.05972073]
[1741616889590,109.01454614,122.23,122.16,0.05972073]
[1741616889790,28.51145455,122.18,122.16,0.05972073]
[1741616889993,28.4594,122.19,122.16,0.05972073]
[1741616890301,0.06128225,122.18,122.16,0.05972073]
[1741616890589,28.4594,122.2,122.17,8.1853]
[1741616890784,44.7794,122.2,122.16,0.05972073]
[1741616890991,28.51767493,122.18,122.16,0.05972073]
[1741616891394,44.83767493,122.18,122.16,0.05972073]
[1741616891584,0.05827493,122.18,122.16,0.05972073]
[1741616891886,8.2475,122.25,122.17,45.05454614]
[1741616892090,28.4594,122.24,122.18,62.0]
[1741616892392,20.5998,122.25,122.17,45.05454614]
[1741616892595,67.7513,122.28,122.21,45.05454614]
[1741616892596,4.1713,122.28,122.21,45.05454614]
[1741616892890,48.9507,122.28,122.21,45.05454614]
[1741616893090,6.29e-05,122.26,122.23,45.11332291]
[1741616893292,6.29e-05,122.26,122.25,53.23514614]
[1741616893494,6.29e-05,122.26,122.25,8.1806]
[1741616894185,6.29e-05,122.26,122.25,53.23514614]
[1741616894594,6.29e-05,122.26,122.25,8.1806]
[1741616895090,6.29e-05,122.26,122.25,53.23514614]
[1741616895287,4.242,122.35,122.25,111.13454614]
[1741616895491,28.4594,122.34,122.27,45.05454614]
[1741616895797,45.05454614,122.41,122.3,45.05454614]
[1741616895992,28.4594,122.39,122.28,45.05454614]
[1741616896186,45.05454614,122.49,122.34,45.05454614]
[1741616896383,28.4594,122.45,122.4,45.05454614]
[1741616896587,16.32,122.47,122.36,45.05454614]
[1741616896787,0.05781982,122.44,122.36,45.05454614]
[1741616896987,15.85071982,122.44,122.38,45.05454614]
[1741616897189,32.1129,122.44,122.39,0.05436647]
[1741616897391,15.7929,122.41,122.39,0.05436647]
[1741616897598,15.7929,122.4,122.39,0.05436647]
[1741616897790,0.05174558,122.42,122.39,0.05436647]
[1741616897993,0.05174558,122.42,122.41,8.1699]
[1741616898293,3.9367,122.5,122.4,45.05454614]
[1741616898489,3.9367,122.5,122.39,0.05436647]
[1741616898490,15.7929,122.45,122.39,0.05436647]
[1741616898694,65.31124614,122.5,122.38,53.22624614]
[1741616898695,15.7929,122.44,122.38,45.05454614]
[1741616898898,15.7929,122.41,122.34,45.05454614]
[1741616899090,15.7929,122.4,122.34,45.05454614]
[1741616899298,15.7929,122.41,122.35,62.0]
[1741616899500,0.05166411,122.38,122.36,0.05609014]
[1741616899685,8.22406411,122.38,122.36,0.05609014]
[1741616899890,15.7929,122.37,122.3,4.1593]
[1741616900092,15.7929,122.36,122.3,49.21384614]
[1741616900283,15.7929,122.37,122.3,4.1593]
[1741616900486,15.7929,122.35,122.32,0.05565388]
[1741616900687,45.05454614,122.44,122.34,45.05454614]
[1741616900893,15.7929,122.39,122.35,8.1734]
[1741616901188,67.1427,122.48,122.38,45.05454614]
[1741616901393,15.7929,122.47,122.4,45.05454614]
[1741616901589,16.32,122.48,122.4,45.05454614]
[1741616901789,15.7929,122.47,122.41,8.1694]
[1741616901994,0.06228073,122.45,122.43,0.05597578]
[1741616903600,15.7929,122.44,122.43,0.05597578]
[1741616903998,8.1693,122.42,122.36,53.22754614]
[1741616904200,15.7929,122.41,122.34,45.05454614]
[1741616904596,62.68,122.45,122.4,8.1705]
[1741616904794,15.7929,122.43,122.34,45.05454614]
[1741616904998,15.7929,122.4,122.32,45.05454614]
[1741616905196,15.7929,122.38,122.32,45.05454614]
[1741616905396,15.7929,122.38,122.37,0.0594059]
[1741616905600,0.0570794,122.36,122.35,8.1739]
[1741616905800,62.8,122.42,122.36,0.0533635]
[1741616906001,15.7929,122.4,122.32,45.05454614]
[1741616906206,15.7929,122.4,122.34,45.05454614]
[1741616906413,8.6519,122.44,122.34,45.05454614]
[1741616906599,8.1699,122.41,122.37,8.1721]
[1741616906798,15.7929,122.42,122.34,45.05454614]
[1741616907000,15.85331533,122.4,122.38,0.06071644]
[1741616907198,45.05454614,122.49,122.38,0.06071644]
[1741616907400,15.7929,122.43,122.37,45.05454614]
[1741616907699,15.7929,122.43,122.35,62.66]
[1741616907905,62.62,122.5,122.4,45.05454614]
[1741616908204,16.32,122.5,122.4,314.65454614]
[1741616908408,0.02338612,122.46,122.44,0.05682062]
[1741616908805,0.02338612,122.46,122.45,8.1672]
[1741616909504,0.02338612,122.46,122.44,0.05682062]
[1741616910002,15.7929,122.45,122.44,0.05682062]
[1741616910396,32.1129,122.45,122.36,269.6]
[1741616910600,15.7929,122.42,122.35,192.0]
[1741616910906,15.7929,122.42,122.41,8.1699]
[1741616911212,12.5113,122.51,122.4,45.05454614]
[1741616911403,15.7929,122.47,122.4,45.05454614]
[1741616911802,32.1129,122.47,122.4,45.05454614]
[1741616912006,15.7929,122.46,122.4,45.05454614]
[1741616912302,15.7929,122.44,122.4,45.05454614]
[1741616912496,15.7929,122.43,122.4,8.1704]
[1741616912700,15.7929,122.41,122.36,4.3549]
[1741616912898,15.7929,122.41,122.34,45.05454614]
[1741616913099,16.32,122.41,122.35,62.0]
[1741616913296,0.06142984,122.39,122.37,0.05556839]
[1741616913499,0.06142984,122.39,122.38,8.1719]
[1741616913706,0.06142984,122.39,122.37,0.05556839]
[1741616915105,0.06142984,122.39,122.38,8.1719]
[1741616915700,0.06142984,122.39,122.37,8.22766839]
[1741616915902,0.06142984,122.39,122.37,0.05556839]
[1741616916911,0.06142984,122.39,122.38,8.1719]
[1741616917505,0.06142984,122.39,122.37,0.05556839]
[1741616918011,0.06142984,122.39,122.38,8.1719]
[1741616918511,0.06142984,122.39,122.37,0.05556839]
[1741616919207,32.17432984,122.39,122.37,0.05556839]
[1741616919513,4.122,122.43,122.37,0.05556839]
[1741616919808,8.3376,122.49,122.37,0.05556839]
[1741616920008,8.3376,122.49,122.39,45.05454614]
[1741616920203,69.71214614,122.49,122.39,45.05454614]
[1741616920402,69.71214614,122.49,122.37,60.74]
[1741616920605,69.71214614,122.49,122.43,0.06196681]
[1741616921505,24.6576,122.49,122.43,0.06196681]
[1741616922109,8.167,122.46,122.43,0.06196681]
[1741616922304,24.6576,122.49,122.43,0.06196681]
[1741616922510,8.1656,122.48,122.43,0.06196681]
[1741616922700,24.6576,122.49,122.43,0.06196681]
[1741616922903,45.05454614,122.48,122.43,0.06196681]
[1741616923101,24.6576,122.49,122.43,0.06196681]
[1741616923304,20.327,122.49,122.43,0.06196681]
[1741616924711,60.14,122.48,122.43,0.06196681]
[1741616924916,4.2342,122.47,122.36,4.0522]
[1741616925405,20.5542,122.47,122.36,4.0522]
[1741616925604,8.1683,122.44,122.36,273.5722]
[1741616925810,20.5542,122.47,122.36,273.5722]
[1741616926002,4.2342,122.47,122.39,45.11588413]
[1741616926201,20.5542,122.47,122.39,45.11588413]
[1741616926507,20.5542,122.47,122.36,273.5722]
[1741616926713,65.60874614,122.47,122.36,273.5722]
[1741616927109,8.1682,122.44,122.36,273.5722]
[1741616927311,0.02873133,122.43,122.42,8.1692]
[1741616927512,20.5542,122.47,122.39,45.05454614]
[1741616927708,0.02873133,122.44,122.41,0.05692396]
[1741616927909,0.02873133,122.44,122.43,8.1685]
[1741616928512,3.133e-05,122.44,122.43,8.1685]
[1741616929317,16.6408,122.55,122.52,8.1622]
[1741616929514,20.5935,122.55,122.47,45.05454614]
[1741616930114,16.32,122.55,122.47,105.07454614]
[1741616930313,16.32,122.55,122.5,0.05632762]
[1741616930916,8.1627,122.52,122.5,0.05632762]
[1741616931221,16.32,122.55,122.5,0.05632762]
[1741616931420,8.1631,122.52,122.5,0.05632762]
[1741616931620,45.05454614,122.52,122.46,62.0]
[1741616931824,61.37454614,122.52,122.45,269.48]
[1741616932415,69.40454614,122.52,122.45,269.48]
[1741616932615,8.1643,122.5,122.45,277.6466]
[1741616932823,24.54062762,122.5,122.47,0.0568086]
[1741616933023,16.37632762,122.5,122.47,8.2223086]
[1741616933315,16.37632762,122.5,122.47,0.0568086]
[1741616934125,16.37632762,122.5,122.4,45.05454614]
[1741616934313,16.32,122.5,122.4,45.05454614]
[1741616934723,16.32,122.5,122.41,62.0]
[1741616934920,8.1649,122.49,122.45,8.167]
[1741616935321,8.22603265,122.48,122.46,0.05468074]
[1741616935518,0.06073265,122.48,122.46,0.05468074]
[1741616935718,16.38073265,122.48,122.46,0.05468074]
[1741616936116,0.06073265,122.48,122.46,0.05468074]
[1741616936427,8.1616,122.54,122.5,8.1635]
[1741616936629,68.4985,122.57,122.48,45.05454614]
[1741616936829,24.8185,122.57,122.48,45.05454614]
[1741616937021,24.8185,122.57,122.5,45.05454614]
[1741616937224,16.32,122.57,122.52,45.05454614]
[1741616937530,44.08875566,122.58,122.57,8.1592]
[1741616937722,60.40875566,122.58,122.57,8.1592]
[1741616938022,60.40875566,122.58,122.56,0.05528926]
[1741616938222,31.18305566,122.58,122.56,0.05528926]
[1741616938427,31.37430909,122.6,122.57,62.0]
[1741616938627,31.37430909,122.6,122.59,8.1579]
[1741616938828,31.37430909,122.6,122.56,0.05528926]
[1741616938829,16.32,122.6,122.56,0.05528926]
[1741616940139,79.14821626,122.65,122.56,45.1098354]
[1741616940336,95.46821626,122.65,122.63,8.155]
[1741616940636,95.46821626,122.65,122.59,0.06199613]
[1741616940836,45.05454614,122.64,122.54,269.36]
[1741616941038,45.05454614,122.64,122.61,0.05548881]
[1741616941236,61.37454614,122.64,122.54,269.36]
[1741616941644,59.98,122.63,122.54,269.36]
[1741616941832,59.98,122.63,122.52,45.05454614]
[1741616942033,45.05454614,122.58,122.47,4.1646]
[1741616942235,45.05454614,122.58,122.42,0.5668]
[1741616942236,0.05548881,122.54,122.51,0.05808226]